bitfinex/quotes_SOLUSD_20220109
["timestamp","ask_amount","ask_price","bid_price","bid_amount"]
[1641695185417,25.36873127,143.69,143.62,10.4382]
[1641695186723,27.34023155,143.69,143.62,10.4382]
[1641695188222,0.26,143.68,143.59,34.7935]
[1641695188423,3.26,143.68,143.54,31.92581714]
[1641695188621,23.99921636,143.66,143.54,10.03]
[1641695188822,10.4479,143.6,143.52,1.96993367]
[1641695189024,0.26,143.59,143.52,1.96993367]
[1641695189423,0.26,143.59,143.49,10.03]
[1641695189626,30.84206152,143.63,143.49,10.03]
[1641695189823,10.4496,143.58,143.49,10.03]
[1641695190051,22.64409672,143.57,143.49,10.03]
[1641695190850,22.64409672,143.57,143.49,41.91233149]
[1641695191254,1.97150028,143.62,143.49,41.91233149]
[1641695191451,1.97150028,143.62,143.49,185.57334872]
[1641695191653,1.97150028,143.62,143.49,197.67480185]
[1641695191952,1.97150028,143.62,143.49,204.70088825]
[1641695192155,1.97150028,143.62,143.49,215.04201173]
[1641695192356,27.93993108,143.64,143.5,2.21993367]
[1641695192553,27.93993108,143.64,143.51,10.03]
[1641695192755,27.93993108,143.64,143.52,23.74257909]
[1641695192954,27.93993108,143.64,143.54,10.4405]
[1641695193155,27.93993108,143.64,143.55,36.35146516]
[1641695193955,27.93993108,143.64,143.55,46.79366516]
[1641695194456,0.26,143.63,143.55,46.79366516]
[1641695194856,0.26,143.63,143.55,20.4722]
[1641695195056,0.26,143.63,143.55,10.4422]
[1641695195258,0.26,143.63,143.52,10.03]
[1641695196259,27.33091898,143.6,143.52,10.03]
[1641695197063,0.26,143.59,143.52,10.03]
[1641695197259,10.4493,143.58,143.52,10.03]
[1641695197465,3.26,143.59,143.52,10.03]
[1641695197659,0.26,143.59,143.52,10.03]
[1641695197860,0.26,143.59,143.49,10.03]
[1641695198160,3.26,143.59,143.49,10.03]
[1641695198960,3.26,143.59,143.5,25.24516958]
[1641695199162,1.97150028,143.61,143.51,10.03]
[1641695199359,1.97150028,143.61,143.51,13.54]
[1641695199561,1.97150028,143.61,143.53,10.4435]
[1641695199761,1.97150028,143.61,143.54,10.03]
[1641695200062,1.97150028,143.64,143.54,13.28]
[1641695200261,24.3374678,143.63,143.55,27.51174049]
[1641695200461,1.97150028,143.64,143.56,10.28]
[1641695200663,1.97150028,143.64,143.56,13.28]
[1641695200863,1.97150028,143.67,143.57,0.26]
[1641695201065,1.97150028,143.67,143.58,10.03]
[1641695201462,24.93785792,143.67,143.59,3.26]
[1641695201663,24.93785792,143.67,143.6,10.03]
[1641695201862,24.93785792,143.67,143.6,20.4702]
[1641695202266,22.96635764,143.67,143.6,20.4702]
[1641695204067,22.96635764,143.67,143.6,10.03]
[1641695205468,22.96635764,143.67,143.61,26.95649449]
[1641695205668,22.96635764,143.67,143.61,27.21649449]
[1641695206269,22.96635764,143.67,143.6,20.4702]
[1641695206472,22.96635764,143.67,143.6,10.03]
[1641695209575,33.40895764,143.67,143.6,10.03]
[1641695209775,35.38045792,143.67,143.6,10.03]
[1641695209978,24.93785792,143.67,143.6,10.03]
[1641695210275,24.93785792,143.67,143.6,36.97283774]
[1641695210475,24.93785792,143.67,143.61,0.26]
[1641695210879,24.93785792,143.67,143.6,10.03]
[1641695211278,22.96635764,143.67,143.6,10.03]
[1641695211778,33.40875764,143.67,143.6,10.03]
[1641695213081,22.96635764,143.67,143.57,10.03]
[1641695213279,0.26,143.66,143.57,10.03]
[1641695213679,3.26,143.66,143.57,10.03]
[1641695214381,10.4448,143.64,143.57,10.03]
[1641695214681,10.4448,143.64,143.54,10.03]
[1641695214879,0.26,143.66,143.54,10.03]
[1641695215082,1.97150028,143.64,143.54,10.03]
[1641695215280,1.97150028,143.64,143.56,31.28504217]
[1641695215479,1.97150028,143.64,143.57,13.28]
[1641695215680,1.97150028,143.64,143.57,19.102]
[1641695215882,24.70000028,143.67,143.58,0.26]
[1641695216081,24.70000028,143.67,143.59,10.03]
[1641695216712,24.70000028,143.67,143.59,36.55319601]
[1641695216910,24.70000028,143.67,143.6,10.7005]
[1641695217113,24.70000028,143.67,143.6,20.4705]
[1641695217512,1.97150028,143.68,143.61,3.51]
[1641695217711,1.97150028,143.68,143.62,10.03]
[1641695217912,1.97150028,143.68,143.63,10.698]
[1641695218112,1.97150028,143.68,143.63,17.775]
[1641695218312,0.34966193,143.69,143.63,17.775]
[1641695218512,0.34966193,143.69,143.63,47.07175753]
[1641695219513,1.97150028,143.71,143.64,13.28]
[1641695219713,1.97150028,143.71,143.67,10.4349]
[1641695220015,1.97150028,143.71,143.68,13.54]
[1641695220212,1.97150028,143.71,143.69,6.06439992]
[1641695220614,1.97150028,143.71,143.7,13.03]
[1641695220815,1.97150028,143.71,143.7,10.03]
[1641695221417,27.95924446,143.75,143.7,10.03]
[1641695223917,48.33290028,143.78,143.71,0.26]
[1641695224420,58.76740028,143.78,143.71,0.26]
[1641695224617,1.97150028,143.78,143.72,10.03]
[1641695225018,30.92009876,143.79,143.73,0.26]
[1641695225220,30.92009876,143.79,143.73,0.51]
[1641695225221,29.92009876,143.79,143.73,0.51]
[1641695225517,29.92009876,143.79,143.74,10.03]
[1641695225717,27.94859848,143.79,143.74,10.03]
[1641695228122,38.38249848,143.79,143.74,10.03]
[1641695230823,38.38249848,143.79,143.71,10.03]
[1641695231023,10.4381,143.73,143.65,7.0260864]
[1641695231325,22.77391146,143.72,143.64,10.03]
[1641695231527,26.03391146,143.72,143.64,10.03]
[1641695231927,34.8076,143.71,143.64,10.03]
[1641695232127,23.03391146,143.72,143.64,10.03]
[1641695232328,1.97150028,143.76,143.64,10.03]
[1641695232537,1.97150028,143.76,143.65,3.51]
[1641695232727,0.26,143.75,143.66,10.03]
[1641695232927,2.23150028,143.75,143.66,10.03]
[1641695233129,12.66810028,143.75,143.66,10.03]
[1641695233328,29.20670809,143.74,143.66,10.03]
[1641695233527,0.26,143.73,143.66,10.03]
[1641695234431,29.20670809,143.74,143.66,10.03]
[1641695234957,29.20670809,143.74,143.66,20.4662]
[1641695236945,29.20670809,143.74,143.66,10.03]
[1641695238634,39.64450809,143.74,143.66,10.03]
[1641695239035,29.20670809,143.74,143.66,10.03]
[1641695239635,29.20670809,143.74,143.67,0.26]
[1641695240135,29.20670809,143.74,143.66,10.03]
[1641695240737,29.20670809,143.74,143.67,10.4359]
[1641695240939,0.26,143.73,143.66,10.03]
[1641695241136,0.26,143.73,143.64,10.03]
[1641695241535,0.26,143.73,143.62,10.03]
[1641695241736,50.3372,143.73,143.62,10.03]
[1641695241937,25.79419033,143.67,143.62,10.03]
[1641695242769,36.23709033,143.67,143.62,10.03]
[1641695242969,25.79419033,143.67,143.62,10.03]
[1641695243774,10.4431,143.66,143.62,10.03]
[1641695244370,25.79419033,143.67,143.62,10.03]
[1641695244771,25.79419033,143.67,143.63,0.26]
[1641695244968,1.97150028,143.71,143.63,0.26]
[1641695245168,3.0,143.7,143.63,0.26]
[1641695245369,1.97150028,143.71,143.63,0.26]
[1641695245572,47.7235,143.73,143.62,10.03]
[1641695246171,1.97150028,143.71,143.62,10.03]
[1641695246573,27.68528117,143.7,143.57,10.03]
[1641695246776,50.71718117,143.7,143.57,10.03]
[1641695246974,50.71718117,143.7,143.58,0.26]
[1641695247174,50.71718117,143.7,143.57,10.03]
[1641695247175,52.68868145,143.7,143.57,10.03]
[1641695247577,29.86258971,143.65,143.57,10.03]
[1641695247776,29.86258971,143.65,143.57,20.4737]
[1641695247975,29.86258971,143.65,143.58,3.25]
[1641695248175,29.86258971,143.65,143.59,10.03]
[1641695248375,29.86258971,143.65,143.6,0.26]
[1641695248581,29.86258971,143.65,143.6,10.29]
[1641695248780,29.86258971,143.65,143.6,10.03]
[1641695248982,29.86258971,143.65,143.61,0.26]
[1641695250478,29.86258971,143.65,143.62,10.03]
[1641695250678,29.86258971,143.65,143.63,3.03219995]
[1641695250878,29.86258971,143.65,143.6,10.03]
[1641695251685,40.30648971,143.65,143.6,10.03]
[1641695251884,29.86258971,143.65,143.62,10.4401]
[1641695252082,29.86258971,143.65,143.6,10.03]
[1641695253186,29.86258971,143.65,143.6,20.4711]
[1641695253386,29.86258971,143.65,143.6,10.03]
[1641695255518,29.86258971,143.65,143.56,10.03]
[1641695255918,0.26,143.64,143.56,10.03]
[1641695256619,10.4465,143.62,143.56,10.03]
[1641695256820,30.4987059,143.61,143.56,10.03]
[1641695257422,0.26,143.6,143.51,10.03]
[1641695258422,3.26,143.6,143.48,533.09703664]
[1641695258620,99.6227,143.6,143.48,533.09703664]
[1641695258822,10.4528,143.53,143.48,533.09703664]
[1641695259021,23.20341958,143.55,143.48,556.23680047]
[1641695259521,23.20341958,143.55,143.47,10.03]
[1641695260321,23.20341958,143.55,143.47,11.68345313]
[1641695260522,23.20341958,143.55,143.48,26.99154776]
[1641695260722,23.20341958,143.55,143.49,10.03]
[1641695261224,23.20341958,143.55,143.49,20.48]
[1641695261428,23.20341958,143.55,143.49,10.03]
[1641695261922,24.3371,143.58,143.49,36.71012902]
[1641695262130,24.3371,143.58,143.5,0.51]
[1641695262325,73.4356,143.6,143.5,0.51]
[1641695262727,0.26,143.59,143.49,36.71012902]
[1641695262926,0.26,143.59,143.49,10.03]
[1641695263126,73.4356,143.6,143.5,0.26]
[1641695263530,73.4356,143.6,143.5,0.51]
[1641695263731,83.8831,143.6,143.5,13.9593]
[1641695263930,25.53658428,143.59,143.5,40.8186812]
[1641695264127,25.53658428,143.59,143.51,10.03]
[1641695264930,1.97150028,143.66,143.52,0.51]
[1641695265134,1.97150028,143.66,143.53,10.03]
[1641695265329,1.97150028,143.66,143.53,148.91347036]
[1641695265531,1.97150028,143.66,143.54,28.2112605]
[1641695265731,75.872,143.68,143.55,10.03]
[1641695265929,38.35458777,143.67,143.56,23.81958979]
[1641695266130,38.35458777,143.67,143.57,10.03]
[1641695266535,38.35458777,143.67,143.58,3.51]
[1641695266733,38.35458777,143.67,143.59,10.03]
[1641695267735,38.35458777,143.67,143.59,20.4724]
[1641695267936,27.91228777,143.67,143.59,10.03]
[1641695269438,27.91228777,143.67,143.6,0.26]
[1641695269636,27.91228777,143.67,143.61,10.03]
[1641695270035,27.91228777,143.67,143.62,0.26]
[1641695270236,27.91228777,143.67,143.62,10.03]
[1641695272037,27.91228777,143.67,143.62,20.4707]
[1641695274672,27.91228777,143.67,143.62,10.03]
[1641695278077,27.91228777,143.67,143.63,3.0]
[1641695278286,27.91228777,143.67,143.62,10.03]
[1641695278477,27.91228777,143.67,143.63,3.0]
[1641695278677,27.91228777,143.67,143.63,13.4382]
[1641695279677,27.91228777,143.67,143.63,10.4382]
[1641695279876,27.91228777,143.67,143.63,10.03]
[1641695280778,27.91228777,143.67,143.63,20.4698]
[1641695281781,27.91228777,143.67,143.63,10.03]
[1641695281981,0.26,143.66,143.63,10.03]
[1641695282183,27.91228777,143.67,143.63,10.03]
[1641695283882,27.91228777,143.67,143.63,20.4697]
[1641695284082,27.91228777,143.67,143.63,10.03]
[1641695290990,10.4435,143.66,143.63,10.03]
[1641695291221,27.91228777,143.67,143.63,10.03]
[1641695293824,10.4431,143.66,143.63,10.03]
[1641695294431,29.88378805,143.67,143.63,10.03]
[1641695294825,27.91228777,143.67,143.63,10.03]
[1641695295424,29.88378805,143.67,143.63,10.03]
[1641695296125,27.91228777,143.67,143.63,10.03]
[1641695296526,10.4431,143.66,143.63,10.03]
[1641695297128,27.91228777,143.67,143.63,10.03]
[1641695297526,38.35508777,143.67,143.63,10.03]
[1641695297826,27.91228777,143.67,143.63,10.03]
[1641695298527,38.35518777,143.67,143.63,10.03]
[1641695298827,27.91228777,143.67,143.63,10.03]
[1641695299531,10.4449,143.64,143.58,10.03]
[1641695299928,10.4449,143.64,143.57,1.96993367]
[1641695300129,0.26,143.63,143.57,1.96993367]
[1641695300530,23.5949903,143.62,143.54,10.03]
[1641695300935,23.5949903,143.62,143.55,3.0]
[1641695301132,23.5949903,143.62,143.56,10.03]
[1641695301330,23.5949903,143.62,143.56,10.28]
[1641695301530,23.5949903,143.62,143.57,3.26]
[1641695301731,23.5949903,143.62,143.57,13.7044]
[1641695301932,23.5949903,143.62,143.58,10.03]
[1641695302134,1.97150028,143.68,143.58,10.03]
[1641695302331,1.97150028,143.68,143.59,3.26]
[1641695302531,1.97150028,143.68,143.6,10.03]
[1641695302932,0.00010028,143.68,143.62,10.4402]
[1641695303131,34.33481765,143.74,143.66,125.39]
[1641695303332,34.33481765,143.74,143.68,125.39]
[1641695303633,34.33481765,143.74,143.69,13.29]
[1641695303832,34.33481765,143.74,143.71,10.4332]
[1641695304032,30.48285581,143.74,143.72,13.06219997]
[1641695305634,30.48285581,143.74,143.72,3.03219997]
[1641695305837,30.48285581,143.74,143.68,10.03]
[1641695306834,40.92045581,143.74,143.68,10.03]
[1641695307934,0.26,143.73,143.68,10.03]
[1641695308134,10.4391,143.72,143.68,10.03]
[1641695308334,29.06914401,143.71,143.68,10.03]
[1641695309036,29.06914401,143.71,143.69,3.03219997]
[1641695312036,29.06914401,143.71,143.7,3.03219995]
[1641695316541,29.06914401,143.71,143.7,13.46769995]
[1641695316740,29.06914401,143.71,143.7,3.03219995]
[1641695320645,24.8901,143.76,143.7,3.03219995]
[1641695321450,35.3262,143.76,143.7,3.03219995]
[1641695321848,23.29894357,143.75,143.7,3.03219995]
[1641695322247,23.29894357,143.75,143.66,10.03]
[1641695322448,33.73584357,143.75,143.67,10.438]
[1641695323252,23.29894357,143.75,143.67,10.438]
[1641695323651,23.29894357,143.75,143.67,10.4379]
[1641695323852,23.29894357,143.75,143.66,10.03]
[1641695324251,3.0,143.74,143.66,10.03]
[1641695324451,10.4401,143.7,143.66,10.03]
[1641695324652,77.1937,143.73,143.66,10.03]
[1641695324851,24.72130149,143.72,143.66,10.03]
[1641695325475,24.72130149,143.72,143.67,3.0]
[1641695325675,24.72130149,143.72,143.68,10.03]
[1641695326074,3.85196184,143.77,143.68,20.4675]
[1641695326277,3.85196184,143.77,143.69,3.0]
[1641695326475,3.85196184,143.77,143.7,10.03]
[1641695326675,10.433,143.8,143.7,44.8075]
[1641695326874,103.00316184,143.81,143.71,3.0]
[1641695327074,25.35816416,143.78,143.72,20.4647]
[1641695327275,25.35816416,143.78,143.72,10.03]
[1641695327877,35.79286416,143.78,143.72,10.03]
[1641695328879,35.79286416,143.78,143.72,20.4648]
[1641695330680,35.79286416,143.78,143.72,10.03]
[1641695335888,35.79286416,143.78,143.67,1.65345313]
[1641695335889,35.79286416,143.78,143.69,10.03]
[1641695336090,58.32326416,143.78,143.69,10.03]
[1641695336489,0.26,143.77,143.69,10.03]
[1641695336692,10.4374,143.74,143.69,10.03]
[1641695336893,28.051652,143.73,143.69,10.03]
[1641695337291,28.051652,143.73,143.65,10.03]
[1641695337497,0.26,143.72,143.63,10.03]
[1641695337692,0.26,143.72,143.59,3.63300626]
[1641695337693,10.4443,143.65,143.61,10.03]
[1641695337896,8.127,143.7,143.61,10.03]
[1641695338196,25.1921005,143.65,143.61,10.03]
[1641695338995,10.4446,143.64,143.61,10.03]
[1641695339400,25.1921005,143.65,143.61,10.03]
[1641695340098,10.4445,143.64,143.61,10.03]
[1641695341700,10.4445,143.64,143.62,3.03219995]
[1641695342099,10.4445,143.64,143.59,10.03]
[1641695344333,10.4445,143.64,143.55,10.03]
[1641695344534,60.0142005,143.65,143.55,20.4767]
[1641695344938,25.1921005,143.65,143.56,0.26]
[1641695345134,25.1921005,143.65,143.56,10.29]
[1641695345335,25.1921005,143.65,143.56,10.03]
[1641695345535,10.4482,143.6,143.56,10.03]
[1641695346535,3.0,143.64,143.56,20.4762]
[1641695346536,10.4453,143.64,143.56,20.4762]
[1641695346735,34.8177,143.67,143.56,20.4762]
[1641695346937,0.26,143.66,143.56,10.03]
[1641695347637,10.4476,143.6,143.56,10.03]
[1641695348441,22.50235894,143.61,143.56,10.03]
[1641695348839,10.4505,143.57,143.56,10.03]
[1641695349241,10.4505,143.57,143.5,76.6969]
[1641695349441,10.4505,143.57,143.51,13.03]
[1641695349741,23.729,143.62,143.52,10.03]
[1641695350144,10.4551,143.54,143.52,10.03]
[1641695350343,25.72097222,143.53,143.49,10.03]
[1641695351342,25.72097222,143.53,143.45,455.99589573]
[1641695351343,0.26,143.52,143.45,466.02589573]
[1641695351743,3.26,143.52,143.45,466.02589573]
[1641695351943,3.26,143.52,143.45,10.03]
[1641695352143,3.26,143.52,143.43,94.7]
[1641695352444,10.4607,143.46,143.43,94.7]
[1641695352646,10.4607,143.46,143.44,6.06439992]
[1641695353445,74.7832,143.51,143.44,31.90103371]
[1641695353646,25.72097222,143.53,143.44,31.90103371]
[1641695354245,25.72097222,143.53,143.45,0.25]
[1641695354645,73.1585,143.59,143.45,26.4673]
[1641695354844,73.1585,143.59,143.45,40.25699711]
[1641695355046,48.7081,143.6,143.45,40.25699711]
[1641695355047,48.7081,143.6,143.45,52.39601816]
[1641695355645,48.7081,143.6,143.46,10.4467]
[1641695355846,27.14544804,143.61,143.48,30.94219571]
[1641695356046,27.14544804,143.61,143.49,13.03]
[1641695356248,27.14544804,143.61,143.49,13.54]
[1641695356645,27.14544804,143.61,143.49,15.19345313]
[1641695357043,27.14544804,143.61,143.52,10.4461]
[1641695357245,27.14544804,143.61,143.53,10.03]
[1641695357447,27.14544804,143.61,143.53,13.54]
[1641695357646,27.14544804,143.61,143.53,13.29]
[1641695357846,27.14544804,143.61,143.53,10.29]
[1641695358953,27.14544804,143.61,143.54,23.58777029]
[1641695359155,27.14544804,143.61,143.54,33.61777029]
[1641695359350,27.14544804,143.61,143.55,3.26]
[1641695360753,27.14544804,143.61,143.55,13.7049]
[1641695360952,150.077,143.67,143.56,10.03]
[1641695361153,155.2812,143.71,143.56,10.28]
[1641695361352,155.2812,143.71,143.57,0.26]
[1641695361555,155.2812,143.71,143.58,10.03]
[1641695361955,26.73496044,143.7,143.59,3.26]
[1641695362156,26.73496044,143.7,143.59,0.26]
[1641695362355,37.17796044,143.7,143.61,10.4412]
[1641695362781,26.73496044,143.7,143.62,0.26]
[1641695363682,26.73496044,143.7,143.62,10.7016]
[1641695363884,26.73496044,143.7,143.62,10.4416]
[1641695364485,26.73496044,143.7,143.63,0.26]
[1641695364684,26.73496044,143.7,143.63,10.6978]
[1641695365583,26.73496044,143.7,143.63,34.05292567]
[1641695366185,153.2424,143.75,143.63,34.05292567]
[1641695366388,10.03,143.79,143.64,13.28]
[1641695366589,3.85196184,143.8,143.69,10.4363]
[1641695366788,3.85196184,143.8,143.69,15.7013]
[1641695366987,3.85196184,143.8,143.71,34.774]
[1641695367186,22.45675207,143.79,143.71,34.774]
[1641695367387,22.45675207,143.79,143.72,3.26]
[1641695367587,22.45675207,143.79,143.72,3.0]
[1641695368286,22.45675207,143.79,143.75,10.432]
[1641695368486,74.2369,143.83,143.75,17.906]
[1641695368688,3.85196184,143.85,143.76,0.51]
[1641695368886,85.73811076,143.87,143.76,0.51]
[1641695369388,27.51402438,143.86,143.76,10.431]
[1641695369587,37.94552438,143.86,143.73,10.03]
[1641695369787,3.0,143.85,143.73,10.03]
[1641695370594,31.3665532,143.81,143.73,43.5782625]
[1641695370796,31.3665532,143.81,143.74,0.26]
[1641695371801,31.3665532,143.81,143.75,10.4318]
[1641695372798,41.8006532,143.81,143.73,20.4632]
[1641695373197,31.3665532,143.81,143.73,20.4632]
[1641695373898,31.3665532,143.81,143.74,0.26]
[1641695375902,31.3665532,143.81,143.74,10.6925]
[1641695376304,31.3665532,143.81,143.74,10.4325]
[1641695377009,41.8005532,143.81,143.73,10.03]
[1641695378907,41.8005532,143.81,143.73,20.4637]
[1641695379705,31.3665532,143.81,143.74,0.26]
[1641695379910,31.3665532,143.81,143.75,10.4323]
[1641695380210,25.6015,143.85,143.75,32.92225438]
[1641695380408,25.6015,143.85,143.76,0.26]
[1641695380809,25.6015,143.85,143.75,22.48995438]
[1641695381311,27.51641225,143.84,143.75,22.48995438]
[1641695381609,3.0,143.83,143.75,22.48995438]
[1641695382209,27.51641225,143.84,143.75,22.48995438]
[1641695382410,3.26,143.83,143.75,22.48995438]
[1641695382812,13.6923,143.83,143.75,10.4322]
[1641695383110,13.4323,143.83,143.75,10.4322]
[1641695383310,13.4323,143.83,143.73,10.03]
[1641695383511,0.26,143.82,143.73,10.03]
[1641695383711,0.26,143.82,143.7,10.03]
[1641695383912,10.4365,143.77,143.7,10.03]
[1641695384212,26.00072154,143.76,143.7,10.03]
[1641695385214,24.3988,143.81,143.7,10.03]
[1641695385412,0.26,143.8,143.7,10.03]
[1641695386013,10.4347,143.79,143.7,20.4659]
[1641695386215,23.02276418,143.78,143.7,20.4659]
[1641695386415,0.26,143.77,143.7,20.4659]
[1641695387415,0.26,143.77,143.74,10.4332]
[1641695387616,0.26,143.77,143.75,6.06439992]
[1641695388016,10.6961,143.77,143.7,10.03]
[1641695388315,0.26,143.77,143.7,10.03]
[1641695388515,0.26,143.77,143.7,20.4662]
[1641695389640,23.02276418,143.78,143.7,20.4662]
[1641695393447,23.02276418,143.78,143.71,3.0]
[1641695393645,24.3988,143.81,143.74,10.4307]
[1641695394849,23.78269509,143.8,143.74,10.4307]
[1641695398956,0.26,143.79,143.74,10.4307]
[1641695399355,23.78269509,143.8,143.74,10.4307]
[1641695401161,34.21579509,143.8,143.73,10.4343]
[1641695401562,34.21579509,143.8,143.72,10.03]
[1641695401761,38.06775693,143.8,143.72,10.03]
[1641695402763,38.06775693,143.8,143.72,20.4651]
[1641695402963,14.28506184,143.8,143.72,20.4651]
[1641695403162,3.85196184,143.81,143.72,22.11855313]
[1641695403361,3.85196184,143.81,143.73,0.26]
[1641695403563,3.85196184,143.81,143.74,10.03]
[1641695403763,3.85196184,143.81,143.74,11.68345313]
[1641695403964,76.3148,143.86,143.77,10.4264]
[1641695403965,26.64087328,143.85,143.77,10.4264]
[1641695404165,26.64087328,143.85,143.77,20.4564]
[1641695404365,26.64087328,143.85,143.78,3.26]
[1641695404665,26.64087328,143.85,143.8,34.7544]
[1641695404865,80.16676184,143.86,143.82,10.4263]
[1641695405165,3.85196184,143.86,143.82,10.4263]
[1641695405667,27.85161076,143.87,143.82,10.4263]
[1641695405866,23.54008845,143.86,143.82,10.4263]
[1641695406769,27.85161076,143.87,143.82,10.4263]
[1641695406972,4.02711076,143.87,143.82,10.4263]
[1641695407167,4.02711076,143.87,143.82,12.07975313]
[1641695407366,4.02711076,143.87,143.83,3.26]
[1641695407596,0.17514892,143.87,143.85,10.4231]
[1641695407797,0.17514892,143.87,143.86,3.03219997]
[1641695408397,0.17514892,143.87,143.86,6.06439992]
[1641695408601,0.17514892,143.87,143.86,16.48729992]
[1641695409599,0.17514892,143.87,143.86,6.06439992]
[1641695409799,0.17514892,143.87,143.78,20.4604]
[1641695410002,0.17514892,143.87,143.76,10.03]
[1641695410199,0.17514892,143.87,143.77,1.65345313]
[1641695410404,0.17514892,143.87,143.76,10.03]
[1641695410603,10.60364892,143.87,143.76,10.03]
[1641695410799,10.60364892,143.87,143.76,20.4609]
[1641695411002,10.60364892,143.87,143.77,1.91345313]
[1641695411200,0.26,143.86,143.77,11.94345313]
[1641695411404,0.26,143.86,143.77,10.29]
[1641695411802,10.4295,143.85,143.78,10.4295]
[1641695412002,36.05472951,143.85,143.78,10.4295]
[1641695412401,36.05472951,143.85,143.77,10.29]
[1641695412803,25.62522951,143.85,143.77,10.29]
[1641695413003,36.05492951,143.85,143.77,20.4597]
[1641695413207,25.62522951,143.85,143.77,20.4597]
[1641695414402,25.62522951,143.85,143.77,10.03]
[1641695414804,0.26,143.84,143.73,1.65345313]
[1641695415003,10.437,143.79,143.72,7.013]
[1641695415404,24.28091468,143.78,143.72,7.013]
[1641695415806,34.7963,143.76,143.72,7.013]
[1641695416203,34.7963,143.76,143.72,6.513]
[1641695416405,10.4387,143.74,143.72,6.513]
[1641695416605,6.06439994,143.73,143.72,6.513]
[1641695417602,16.50259994,143.73,143.72,6.513]
[1641695419006,6.06439994,143.73,143.72,6.513]
[1641695419303,6.06439994,143.73,143.71,10.03]
[1641695419506,3.03219997,143.73,143.71,10.03]
[1641695419803,10.4374,143.74,143.71,10.03]
[1641695420004,10.438,143.75,143.71,10.03]
[1641695420504,0.438,143.75,143.71,10.03]
[1641695422505,0.698,143.75,143.65,10.03]
[1641695422706,11.154,143.75,143.65,10.03]
[1641695423106,12.57195989,143.75,143.65,10.03]
[1641695423307,14.53816515,143.75,143.65,10.03]
[1641695423505,14.53816515,143.75,143.61,26.42902498]
[1641695423707,10.4456,143.63,143.62,10.03]
[1641695423906,16.50999994,143.63,143.6,10.03]
[1641695425810,10.4456,143.63,143.6,10.03]
[1641695426614,6.06439994,143.62,143.6,10.03]
[1641695426815,10.4484,143.61,143.6,10.03]
[1641695427012,31.6838961,143.66,143.6,10.03]
[1641695428015,10.4442,143.65,143.6,10.03]
[1641695428216,31.6838961,143.66,143.6,10.03]
[1641695430815,10.4442,143.65,143.6,10.03]
[1641695431015,31.6838961,143.66,143.6,10.03]
[1641695431918,10.445,143.64,143.6,10.03]
[1641695437620,31.6838961,143.66,143.6,10.03]
[1641695438422,120.4307,143.72,143.6,10.03]
[1641695438423,120.4307,143.72,143.6,20.4735]
[1641695438623,0.26,143.71,143.6,20.4735]
[1641695438831,120.4307,143.72,143.6,20.4735]
[1641695439424,29.53787178,143.71,143.6,20.4735]
[1641695439626,32.53787178,143.71,143.6,20.4735]
[1641695439826,32.53787178,143.71,143.6,10.03]
[1641695440029,10.4449,143.64,143.6,10.03]
[1641695441460,31.66156853,143.65,143.6,10.03]
[1641695442361,42.10626853,143.65,143.6,10.03]
[1641695442961,31.66156853,143.65,143.6,10.03]
[1641695443863,10.445,143.64,143.6,10.03]
[1641695444063,9.445,143.64,143.6,10.03]
[1641695446166,9.445,143.64,143.56,20.4759]
[1641695446568,10.4461,143.63,143.56,20.4759]
[1641695447166,10.4461,143.63,143.56,52.03017467]
[1641695447865,10.4461,143.63,143.56,20.4759]